bitfinex-derivatives/quotes_BNBF0:USTF0_20250331
["timestamp","ask_amount","ask_price","bid_price","bid_amount"]
[1743383860478,2.88985437,601.13,600.0,0.33333333]
[1743383860682,5.48436985,601.13,600.0,0.33333333]
[1743383860878,3.79731084,601.12,600.0,0.33333333]
[1743383861077,6.68716521,601.12,600.0,0.33333333]
[1743383861281,4.07941891,601.11,600.0,0.33333333]
[1743383861480,3.79731084,601.1,600.0,0.33333333]
[1743383861784,6.68716521,601.1,600.0,0.33333333]
[1743383861978,2.39051171,601.09,600.0,0.33333333]
[1743383862181,0.91942758,601.09,600.0,0.33333333]
[1743383862382,5.48436985,601.09,600.0,0.33333333]
[1743383862585,3.79731084,601.08,600.0,0.33333333]
[1743383862780,2.39051171,601.07,600.0,0.33333333]
[1743383862985,3.85101588,601.07,600.0,0.33333333]
[1743383863580,6.88758978,601.06,600.0,0.33333333]
[1743383863784,2.39051171,601.05,600.0,0.33333333]
[1743383864087,2.68454447,601.04,600.0,0.33333333]
[1743383864281,1.65022196,600.98,600.0,0.33333333]
[1743383864484,6.18424335,600.97,600.0,0.33333333]
[1743383864782,6.98972034,600.96,600.0,0.33333333]
[1743383865081,1.65022196,600.93,600.0,0.33333333]
[1743383865286,4.71315922,600.92,600.0,0.33333333]
[1743383865488,3.84963926,600.91,600.0,0.33333333]
[1743383865681,6.18111058,600.9,600.0,0.33333333]
[1743383865992,6.68058445,600.89,600.0,0.33333333]
[1743383866193,6.18111058,600.88,600.0,0.33333333]
[1743383866394,2.37735022,600.87,600.0,0.33333333]
[1743383867085,3.56691476,600.87,600.0,0.33333333]
[1743383867281,2.37735022,600.86,600.0,0.33333333]
[1743383867582,1.18956454,600.87,600.0,0.33333333]
[1743383867786,1.18956454,600.86,600.0,0.33333333]
[1743383868281,6.67663978,600.99,600.0,0.33333333]
[1743383868584,6.67663978,600.98,600.0,0.33333333]
[1743383868790,6.67663978,600.97,600.0,0.33333333]
[1743383868979,6.17717257,600.96,600.0,0.33333333]
[1743383869182,6.17717257,600.95,600.0,0.33333333]
[1743383869384,6.17717257,600.94,600.0,0.33333333]
[1743383869587,2.37510931,600.93,600.0,0.33333333]
[1743383869787,6.17340598,600.95,600.0,0.33333333]
[1743383870087,1.18956454,600.92,600.0,0.33333333]
[1743383870688,1.18956454,600.91,600.0,0.33333333]
[1743383871082,1.18956454,600.9,600.0,0.33333333]
[1743383871883,1.18956454,600.89,600.0,0.33333333]
[1743383872084,0.28977542,601.08,600.0,0.33333333]
[1743383872085,9.26680341,601.02,600.0,0.33333333]
[1743383872282,6.17294527,601.01,600.0,0.33333333]
[1743383872486,6.17294527,601.0,600.0,0.33333333]
[1743383872684,6.17294527,600.99,600.0,0.33333333]
[1743383872884,6.17294527,600.98,600.0,0.33333333]
[1743383873086,2.37420972,600.97,600.0,0.33333333]
[1743383873282,3.09385814,600.98,600.0,0.33333333]
[1743383873881,7.36549697,601.14,600.0,0.33333333]
[1743383874078,6.17593243,601.13,600.0,0.33333333]
[1743383874280,6.17593243,601.12,600.0,0.33333333]
[1743383874488,6.17593243,601.11,600.0,0.33333333]
[1743383874688,6.17593243,601.1,600.0,0.33333333]
[1743383874881,2.38591449,601.09,600.0,0.33333333]
[1743383875387,1.18956454,601.08,600.0,0.33333333]
[1743383875781,3.56600884,601.08,600.0,0.33333333]
[1743383876181,1.18956454,601.07,600.0,0.33333333]
[1743383876484,3.56600884,601.07,600.0,0.33333333]
[1743383876687,2.3764443,601.06,600.0,0.33333333]
[1743383876982,1.18956454,601.06,600.0,0.33333333]
[1743383877688,1.18870746,601.05,600.0,0.33333333]
[1743383878082,2.3787337,601.08,600.0,0.33333333]
[1743383878083,5.4693731,601.08,600.0,0.33333333]
[1743383878285,2.3787337,601.07,600.0,0.33333333]
[1743383878686,3.56744116,601.07,600.0,0.33333333]
[1743383878882,2.3787337,601.06,600.0,0.33333333]
[1743383879083,1.18870746,601.05,600.0,0.33333333]
[1743383879790,1.18870746,601.04,600.0,0.33333333]
[1743383880390,1.18870746,601.03,600.0,0.33333333]
[1743383880884,1.18870746,601.02,600.0,0.33333333]
[1743383881491,3.56927785,601.14,600.0,0.33333333]
[1743383881683,2.38057039,601.13,600.0,0.33333333]
[1743383881890,1.18870746,601.14,600.0,0.33333333]
[1743383882186,1.18870746,601.12,600.0,0.33333333]
[1743383882695,1.72,601.16,600.0,0.33333333]
[1743383883294,1.18870746,601.15,600.0,0.33333333]
[1743383883491,1.46112992,601.14,600.0,0.33333333]
[1743383883792,3.56943244,601.14,600.0,0.33333333]
[1743383883990,1.46112992,601.13,600.0,0.33333333]
[1743383884185,6.18988495,601.13,600.0,0.33333333]
[1743383884388,7.37859241,601.12,600.0,0.33333333]
[1743383884585,6.18988495,601.11,600.0,0.33333333]
[1743383884785,5.27091963,601.1,600.0,0.33333333]
[1743383884985,6.19090828,601.09,600.0,0.33333333]
[1743383885187,0.91998865,601.08,600.0,0.33333333]
[1743383885390,6.19094824,601.09,600.0,0.33333333]
[1743383885589,2.39201045,601.08,600.0,0.33333333]
[1743383885787,5.48399906,601.08,600.0,0.33333333]
[1743383885993,1.46112992,601.07,600.0,0.33333333]
[1743383886194,2.38111857,601.07,600.0,0.33333333]
[1743383887089,1.18870746,601.06,600.0,0.33333333]
[1743383887287,2.38111857,601.05,600.0,0.33333333]
[1743383887485,2.38111857,601.04,600.0,0.33333333]
[1743383887692,2.38111857,601.03,600.0,0.33333333]
[1743383887899,2.38111857,601.02,600.0,0.33333333]
[1743383888124,2.38111857,601.01,600.0,0.33333333]
[1743383888322,3.56982603,601.0,600.0,0.33333333]
[1743383888502,2.38111857,600.99,600.0,0.33333333]
[1743383888898,2.38111857,600.98,600.0,0.33333333]
[1743383889097,2.38111857,600.97,600.0,0.33333333]
[1743383889391,3.56982603,600.96,600.0,0.33333333]
[1743383889694,2.38111857,600.95,600.0,0.33333333]
[1743383889894,2.38111857,600.94,600.0,0.33333333]
[1743383890195,2.38111857,600.93,600.0,0.33333333]
[1743383890495,2.38111857,600.92,600.0,0.33333333]
[1743383890690,1.46112992,600.91,600.0,0.33333333]
[1743383890896,1.46181488,600.9,600.0,0.33333333]
[1743383891094,1.18870746,600.9,600.0,0.33333333]
[1743383891292,2.38181572,600.89,600.0,0.33333333]
[1743383891489,2.38181572,600.88,600.0,0.33333333]
[1743383891690,2.38181572,600.87,600.0,0.33333333]
[1743383891895,1.46182707,600.86,600.0,0.33333333]
[1743383892095,1.18870746,600.87,600.0,0.33333333]
[1743383892291,5.0428244,600.87,600.0,0.33333333]
[1743383892497,7.38174772,600.86,600.0,0.33333333]
[1743383892698,2.38137045,600.85,600.0,0.33333333]
[1743383892896,3.57007791,600.86,600.0,0.33333333]
[1743383893092,1.18870746,600.86,600.0,0.33333333]
[1743383893602,1.18870746,600.85,600.0,0.33333333]
[1743383894399,1.18870746,600.84,600.0,0.33333333]
[1743383894998,2.38137045,600.85,600.0,0.33333333]
[1743383895199,2.38137045,600.86,600.0,0.33333333]
[1743383895399,1.18870746,600.86,600.0,0.33333333]
[1743383895596,1.18870746,600.85,600.0,0.33333333]
[1743383896200,2.38137045,600.9,600.0,0.33333333]
[1743383896400,2.38137045,600.93,600.0,0.33333333]
[1743383896700,1.18870746,600.92,600.0,0.33333333]
[1743383897101,1.18870746,600.91,599.99,0.2897887]
[1743383897297,1.18870746,600.91,599.15,2.5510302]
[1743383897700,1.18870746,600.91,599.99,0.28986352]
[1743383898098,1.18870746,600.91,599.15,2.5510302]
[1743383898099,1.18870746,600.9,599.15,2.5510302]
[1743383898599,1.18870746,600.9,599.16,2.5510302]
[1743383898805,2.6506042,600.9,599.16,2.5510302]
[1743383899004,1.46189674,600.89,599.16,2.84091183]
[1743383899399,1.18870746,600.88,599.16,2.84091183]
[1743383899905,3.57104911,600.88,599.16,0.28988163]
[1743383900105,3.57104911,600.87,599.16,0.28988163]
[1743383900305,1.18870746,600.87,599.16,0.28988163]
[1743383900807,6.19402546,600.93,599.16,0.28988163]
[1743383901105,2.38231748,600.92,599.19,2.5510302]
[1743383901300,7.38279605,600.94,599.19,2.5510302]
[1743383901500,3.09198861,600.92,599.19,2.5510302]
[1743383901704,1.18870746,600.91,599.19,2.5510302]
[1743383903004,2.38277209,600.94,599.39,2.5510302]
[1743383903604,3.57147955,600.94,599.39,2.5510302]
[1743383904807,0.92071226,600.93,599.28,2.5510302]
[1743383905008,3.57164936,600.94,599.28,2.5510302]
[1743383906114,2.3829419,600.93,599.28,2.5510302]
[1743383906309,3.85630595,600.93,599.28,2.5510302]
[1743383906508,3.09467018,600.92,599.28,2.5510302]
[1743383906708,5.48874649,600.92,599.28,2.5510302]
[1743383906913,3.80255789,600.91,599.28,2.5510302]
[1743383907214,3.58278377,600.9,599.28,2.5510302]
[1743383907411,1.18870746,600.9,599.28,2.5510302]
[1743383908019,7.38564829,600.9,599.23,2.5510302]
[1743383908215,6.19694083,600.89,599.23,2.5510302]
[1743383908412,0.92081594,600.88,599.23,2.5510302]
[1743383908611,2.38343878,600.88,599.23,2.5510302]
[1743383908811,3.09467018,600.88,599.23,2.5510302]
[1743383909022,5.477884,600.88,599.23,2.5510302]
[1743383909214,2.38321382,600.87,599.23,2.5510302]
[1743383909919,2.38321382,600.87,599.14,2.5510302]
[1743383910219,6.1959688,600.93,599.14,2.5510302]
[1743383910416,2.39382224,600.92,599.15,0.28991061]
[1743383910614,1.49472815,600.91,599.15,0.28991061]
[1743383910812,0.30602069,600.9,599.15,0.28991061]
[1743383911419,2.38327135,600.89,599.15,0.28991061]
[1743383911719,2.68918131,600.88,599.15,0.28991061]
[1743383911916,2.38316062,600.87,599.15,0.28991061]
[1743383912119,2.38316062,600.86,599.15,0.28991061]
[1743383912320,6.19612968,600.86,599.09,2.5510302]
[1743383912621,6.695827,600.85,599.09,2.5510302]
[1743383912919,7.88453012,600.84,599.15,0.28995771]
[1743383913121,6.69582418,600.83,599.15,0.28995771]
[1743383913321,5.4886533,600.82,599.15,0.28995771]
[1743383913521,3.80214656,600.81,599.15,0.28995771]
[1743383913723,0.92076274,600.8,599.15,0.28995771]
[1743383913920,1.18870746,600.8,599.15,0.28995771]
[1743383914124,2.68927836,600.79,599.15,0.28995771]
[1743383914322,2.38316062,600.78,599.15,0.28995771]
[1743383914523,2.38316062,600.77,599.15,0.28995771]
[1743383914719,3.856381,600.77,599.15,0.28995771]
[1743383914919,0.92076274,600.76,599.15,0.28995771]
[1743383915124,6.69585496,600.77,599.15,0.28995771]
[1743383915317,6.69585496,600.76,598.78,2.5510302]
[1743383915525,6.69585496,600.75,598.78,2.5510302]
[1743383915723,6.69585496,600.74,599.15,0.29004351]
[1743383915925,6.69585496,600.73,598.78,2.5510302]
[1743383916121,6.69585496,600.72,598.78,2.5510302]
[1743383916427,9.79052514,600.71,598.47,2.5510302]
[1743383916726,6.69585496,600.7,598.47,2.5510302]
[1743383916926,2.8937084,600.69,598.79,0.29006647]
[1743383917127,5.4886533,600.69,598.47,2.5510302]
[1743383917325,3.80214656,600.68,598.47,2.5510302]
[1743383917522,2.39398312,600.67,598.79,0.29010758]
[1743383917721,3.58269058,600.67,598.47,2.5510302]
[1743383917921,0.30618996,600.66,598.47,2.5510302]
[1743383918126,7.00222007,600.66,598.47,2.5510302]
[1743383918328,3.20007351,600.65,598.42,2.5510302]
[1743383918527,0.30618996,600.64,598.42,2.5510302]
[1743383918830,0.30618996,600.64,598.48,0.29012814]
[1743383919521,4.66247139,600.64,598.48,0.29012814]
[1743383919726,0.30618996,600.63,598.48,0.29012814]
[1743383919927,7.00222007,600.63,598.48,0.29012814]
[1743383920124,3.20007351,600.62,598.48,0.29012814]
[1743383920325,0.30618996,600.61,598.48,0.29012814]
[1743383920527,0.30618996,600.61,598.48,2.84115834]
[1743383921029,7.00222007,600.61,598.48,2.84115834]
[1743383921226,7.00222007,600.6,598.48,2.84115834]
[1743383921431,7.00222007,600.59,598.48,2.5510302]
[1743383921729,7.00222007,600.58,598.48,2.5510302]
[1743383921929,7.00222007,600.57,598.48,2.5510302]
[1743383922130,7.00222007,600.56,598.48,2.5510302]
[1743383922331,7.00222007,600.55,598.22,2.5510302]
[1743383922527,6.96813676,600.54,598.48,0.29016201]
[1743383922732,6.96813676,600.53,598.48,0.29016201]
[1743383922931,6.96813676,600.53,598.22,2.5510302]
[1743383922932,6.96813676,600.52,598.22,2.5510302]
[1743383923132,6.96813676,600.51,598.22,2.5510302]
[1743383923332,6.96813676,600.5,598.22,2.5510302]
[1743383923525,3.18698434,600.49,598.22,2.5510302]
[1743383923726,0.33307242,600.47,598.33,0.3342637]
[1743383923926,0.30618996,600.46,598.33,0.3342637]
[1743383924126,0.33308906,600.44,598.33,0.3342637]
[1743383924839,0.30631744,600.43,598.33,0.3342637]
[1743383925135,1.78528129,600.43,598.34,0.29025639]
[1743383925335,1.47896385,600.43,598.34,0.29025639]
[1743383925736,8.14091065,600.43,598.34,0.29025639]
[1743383926037,6.16191707,600.42,598.34,0.29025639]
[1743383926232,2.38076465,600.41,598.34,0.29025639]
[1743383926438,6.16191707,600.41,598.34,0.29025639]
[1743383926635,2.38076465,600.4,598.34,0.29025639]
[1743383926835,0.91567871,600.4,598.34,0.29025639]
[1743383927035,0.30631991,600.39,598.34,0.29025639]
[1743383927537,1.18870746,600.38,598.33,0.3342637]
[1743383927738,0.30631991,600.37,598.33,0.3342637]
[1743383928037,1.49504795,600.36,598.34,0.29024429]
[1743383928237,0.30634049,600.35,598.34,0.29024429]
[1743383928432,6.96836968,600.35,598.34,0.29024429]
[1743383928636,3.18721726,600.34,598.34,0.29024429]
[1743383928938,0.30634049,600.33,598.36,0.33424694]
[1743383929331,0.3331612,600.31,598.36,0.33424694]
[1743383929536,1.49504795,600.3,598.36,0.33424694]
[1743383929739,0.33317785,600.28,598.36,0.33424694]
[1743383929937,0.30634049,600.27,598.36,0.33424694]
[1743383930139,0.33318895,600.26,598.36,0.33424694]
[1743383930332,1.22210361,600.25,598.36,0.33424694]
[1743383930537,0.3332056,600.23,598.36,0.33424694]
[1743383930739,0.3064249,600.22,598.36,0.33424694]
[1743383930935,0.3332167,600.21,598.36,0.33424694]
[1743383931135,0.3064249,600.2,598.36,0.33424694]
[1743383931335,0.33322781,600.19,598.36,0.33424694]
[1743383931541,0.3064249,600.18,598.36,0.33424694]
[1743383931836,0.3064142,600.17,598.36,0.33424694]
[1743383932235,0.33324446,600.16,598.36,0.33424694]
[1743383932640,1.52195192,600.16,598.36,0.33424694]
[1743383932835,9.57567666,600.16,598.36,0.33424694]
[1743383933035,6.14776202,600.15,598.36,0.33424694]
[1743383933240,2.3666096,600.14,598.36,0.33424694]
[1743383933535,0.91023446,600.14,598.36,0.33424694]
[1743383933740,6.14776202,600.14,598.36,0.33424694]
[1743383933941,2.65690473,600.13,598.36,0.33424694]
[1743383934241,0.33326667,600.12,598.36,0.33424694]
[1743383934443,1.24350113,600.12,598.36,0.33424694]
[1743383934638,1.78964181,600.12,598.36,0.33424694]
[1743383934841,1.18870746,600.11,598.36,0.33424694]
[1743383935046,0.33327778,600.1,598.36,0.33424694]
[1743383935744,1.49514605,600.09,598.36,0.33424694]
[1743383935945,0.30643859,600.08,598.36,0.33424694]
[1743383936646,0.29032056,600.07,598.36,0.33424694]
[1743383936847,0.30643859,600.06,598.36,0.33424694]
[1743383940146,6.92280133,599.84,598.36,0.33424694]
[1743383940346,6.92280133,599.83,598.36,0.33424694]
[1743383940550,6.92280133,599.82,598.36,0.33424694]
[1743383940752,6.92280133,599.81,598.36,0.33424694]
[1743383941050,6.92280133,599.8,598.36,0.33424694]
[1743383941243,6.92280133,599.79,598.36,0.33424694]
[1743383941448,6.92280133,599.78,598.36,0.33424694]
[1743383941648,6.92280133,599.77,598.36,0.33424694]
[1743383941849,6.61625074,599.76,598.36,0.33424694]
[1743383942151,6.61625074,599.75,598.36,0.33424694]
[1743383942351,6.11595486,599.74,598.36,0.33424694]
[1743383942551,6.11595486,599.73,598.36,0.33424694]
[1743383942748,6.11595486,599.72,598.36,0.33424694]
[1743383942952,6.11595486,599.71,598.36,0.33424694]
[1743383943254,6.11595486,599.7,598.36,0.33424694]
[1743383943447,6.11595486,599.69,598.36,0.33424694]
[1743383943645,6.11595486,599.68,598.36,0.33424694]
[1743383943850,2.34782258,599.67,598.36,0.33424694]
[1743383944049,0.91023446,599.67,598.36,0.33424694]
[1743383944552,4.00490464,599.67,598.36,0.33424694]
[1743383944754,1.44205587,599.66,598.36,0.33424694]
[1743383944948,2.35229033,599.66,598.36,0.33424694]
[1743383945448,1.44205587,599.75,598.36,0.33424694]
[1743383945953,1.18870746,599.75,598.36,0.33424694]
[1743383946748,1.18870746,599.79,598.36,0.33424694]
[1743383947247,2.35229033,599.87,598.36,0.33424694]
[1743383947453,0.29040051,599.88,598.36,0.33424694]
[1743383948353,2.34712563,600.02,598.36,0.33424694]
[1743383948553,0.3065106,600.01,598.36,0.33424694]
[1743383949148,9.99259133,600.01,598.36,0.33424694]
[1743383949452,8.07549487,600.0,598.36,0.33424694]
[1743383949653,6.39749487,599.99,598.36,0.33424694]
[1743383949953,2.65363623,599.98,598.36,0.33424694]
[1743383950153,0.3065106,599.97,598.36,0.33424694]
[1743383950354,0.33335555,599.96,598.36,0.33424694]
[1743383950558,0.3065106,599.95,598.36,0.33424694]
[1743383950755,0.33336667,599.94,598.36,0.33424694]
[1743383951053,0.3065106,599.93,598.36,0.33424694]
[1743383951651,0.33337778,599.92,598.36,0.33424694]
[1743383952154,0.623748,599.92,598.36,0.33424694]
[1743383952756,1.53398246,599.92,598.36,0.33424694]
[1743383953054,8.36836428,599.92,598.36,0.33424694]
[1743383953255,2.34858509,599.91,598.36,0.33424694]
[1743383953555,1.43835063,599.91,598.36,0.33424694]
[1743383953757,1.43817191,599.91,598.36,0.33424694]
[1743383954054,0.33337778,599.92,598.36,0.33424694]
[1743383954251,1.43817191,599.91,598.36,0.33424694]
[1743383954453,1.43817191,599.9,598.36,0.33424694]
[1743383954657,2.33616285,599.89,598.36,0.33424694]
[1743383954859,2.33615868,599.88,598.36,0.33424694]
[1743383955053,2.33615868,599.87,598.36,0.33424694]
[1743383955261,0.89798677,599.86,598.36,0.33424694]
[1743383955455,2.3365185,599.85,598.36,0.33424694]
[1743383955657,2.3365185,599.84,598.36,0.33424694]
[1743383955952,2.3365185,599.83,598.36,0.33424694]
[1743383956253,2.3365185,599.82,598.36,0.33424694]
[1743383956456,2.3365185,599.81,598.36,0.33424694]
[1743383956759,2.3365185,599.8,598.36,0.33424694]
[1743383956960,2.3365185,599.79,598.36,0.33424694]
[1743383957258,1.43853173,599.78,598.36,0.33424694]
[1743383957560,1.18870746,599.79,598.36,0.33424694]
[1743383957756,2.33731146,599.81,598.36,0.33424694]
[1743383957952,1.43853173,599.81,598.36,0.33424694]
[1743383958355,1.43853173,599.8,598.36,0.33424694]
[1743383958558,1.18870746,599.8,598.36,0.33424694]
[1743383959056,3.52601892,599.83,598.36,0.33424694]
[1743383959267,2.33731146,599.82,598.36,0.33424694]
[1743383959555,1.43853173,599.81,598.36,0.33424694]
[1743383959760,1.43853173,599.8,598.36,0.33424694]
[1743383959960,1.18870746,599.8,598.36,0.33424694]
[1743383961461,2.33851617,599.82,598.36,0.33424694]
[1743383961761,1.43853173,599.85,598.36,0.33424694]
[1743383962157,1.18870746,599.85,598.36,0.33424694]
[1743383962557,1.43853173,599.9,598.36,0.33424694]
[1743383962764,1.43853173,599.89,598.36,0.33424694]
[1743383962964,1.43853173,599.88,598.36,0.33424694]
[1743383963164,1.43853173,599.87,598.36,0.33424694]
[1743383963464,1.18870746,599.87,598.36,0.33424694]
[1743383963657,2.33851617,599.88,598.36,0.33424694]
[1743383963658,3.52722363,599.88,598.36,0.33424694]
[1743383963857,2.33851617,599.87,598.36,0.33424694]
[1743383964064,2.62723919,599.86,598.36,0.33424694]
[1743383964264,1.18870746,599.86,598.36,0.33424694]
[1743383964461,1.43853173,599.85,598.36,0.33424694]
[1743383964667,1.43853173,599.84,598.36,0.33424694]
[1743383964865,1.43853173,599.83,598.36,0.33424694]
[1743383965067,1.43853173,599.82,598.36,0.33424694]
[1743383965367,2.34114328,599.81,598.36,0.33424694]
[1743383965567,2.62723919,599.8,598.36,0.33424694]
[1743383965767,1.43853173,599.79,598.36,0.33424694]
[1743383965966,1.43853173,599.78,598.36,0.33424694]
[1743383966169,2.62723919,599.77,598.36,0.33424694]
[1743383966369,1.18870746,599.77,598.36,0.33424694]
[1743383967571,3.03753404,599.78,598.36,0.33424694]
[1743383968270,1.84882658,599.78,598.36,0.33424694]
[1743383968462,7.80800256,599.89,598.36,0.33424694]
[1743383968463,6.11890487,599.88,598.36,0.33424694]
[1743383968667,3.03753404,599.89,598.36,0.33424694]
[1743383968668,4.6717229,599.87,598.36,0.33424694]
[1743383968867,3.76723417,599.86,598.36,0.33424694]
[1743383969064,2.35414786,599.85,598.36,0.33424694]
[1743383969269,2.31829795,599.86,598.36,0.33424694]
[1743383969270,1.44893622,599.84,598.36,0.33424694]
[1743383969470,3.03753404,599.87,598.36,0.33424694]
[1743383969471,2.35492626,599.85,598.36,0.33424694]
[1743383969667,1.18870746,599.84,598.36,0.33424694]
[1743383970065,3.54363372,599.84,598.36,0.33424694]
[1743383970467,2.35492626,599.84,598.36,0.33424694]
[1743383970672,0.29038718,599.89,598.36,0.33424694]
[1743383970874,0.62378163,599.89,598.36,0.33424694]
[1743383972468,0.33339445,599.89,598.36,0.33424694]
[1743383976676,1.73936824,599.88,598.36,0.33424694]
[1743383976874,1.44893622,599.87,598.36,0.33424694]
[1743383977575,0.29043202,599.88,598.36,0.33424694]
[1743383977971,1.18870746,599.87,598.36,0.33424694]
[1743383978377,0.33341112,599.86,598.36,0.33424694]
[1743383978576,1.52211858,599.86,598.36,0.33424694]
[1743383978978,0.33341112,599.86,598.36,0.33424694]
[1743383979282,1.797,599.85,598.36,0.33424694]
[1743383979880,4.16839734,599.85,598.36,0.33424694]
[1743383980078,0.91014779,599.84,598.36,0.33424694]
[1743383980477,1.17377375,599.84,598.36,0.33424694]
[1743383981383,2.37139734,599.84,598.36,0.33424694]
[1743383981983,3.54517109,599.84,598.36,0.33424694]
[1743383983883,2.6350233,599.84,598.36,0.33424694]
[1743383984080,1.17377375,599.84,598.36,0.33424694]
[1743383984985,4.4320233,599.85,598.36,0.33424694]
[1743383986483,0.91462549,599.84,598.36,0.33424694]
[1743383986686,2.37587504,599.84,598.36,0.33424694]
[1743383987296,2.3798312,599.84,598.36,0.33424694]
[1743383987686,3.55360495,599.84,598.36,0.33424694]
[1743383991291,1.46638096,599.83,598.36,0.33424694]
[1743383991493,2.38100645,599.84,598.36,0.33424694]
[1743383991692,0.91462549,599.84,598.36,0.33424694]
[1743383991892,1.797,599.85,598.36,0.33424694]
[1743383992796,1.797,599.85,598.39,2.5510302]
[1743383992992,1.797,599.85,598.41,0.33421901]
[1743384000597,1.17786855,599.84,598.41,0.33421901]
[1743384001001,2.09345158,599.84,598.41,0.33421901]
[1743384001299,3.55997829,599.84,598.41,0.33421901]
[1743384001495,2.64439526,599.83,598.41,0.33421901]
[1743384001802,2.38210974,599.82,598.41,0.33421901]
[1743384001996,1.46652671,599.81,598.41,0.33421901]
[1743384002201,1.46652671,599.8,598.41,0.33421901]
[1743384002397,1.46652671,599.79,598.41,0.33421901]
[1743384002702,1.46743394,599.78,598.41,0.33421901]
[1743384002898,1.17786855,599.78,598.41,0.33421901]
[1743384003196,3.5613413,599.78,598.41,0.33421901]
[1743384003405,2.38347275,599.77,598.41,0.33421901]
[1743384003603,2.09390736,599.77,598.41,0.33421901]
[1743384003802,1.17786855,599.77,598.41,0.33421901]
[1743384004000,2.09390736,599.77,598.41,0.33421901]
[1743384004202,1.17786855,599.77,598.41,0.33421901]
[1743384004701,1.17786855,599.76,598.41,0.33421901]
[1743384005398,1.17786855,599.75,598.41,0.33421901]
[1743384006000,1.17786855,599.74,598.41,0.33421901]
[1743384006617,1.17786855,599.73,598.41,0.33421901]
[1743384007005,2.38406258,599.83,598.41,0.33421901]
[1743384007299,2.38406258,599.84,598.41,0.33421901]
[1743384007812,5.44747785,599.84,598.41,0.33421901]
[1743384008031,2.38406258,599.83,598.41,0.33421901]
[1743384008220,2.38406258,599.84,598.41,0.33421901]
[1743384008434,3.56193113,599.84,598.41,0.33421901]
[1743384008620,1.46850183,599.83,598.41,0.33421901]
[1743384008819,3.56299902,599.84,598.41,0.33421901]
[1743384009014,1.46850183,599.83,598.41,0.33421901]
[1743384009214,6.20158892,599.83,598.41,0.33421901]
[1743384009509,5.44871505,599.82,598.41,0.33421901]
[1743384009702,3.81812844,599.81,598.41,0.33421901]
[1743384009912,6.70207368,599.81,598.41,0.33421901]
[1743384010102,6.70207368,599.8,598.41,0.33421901]
[1743384010408,6.70207368,599.79,598.41,0.33421901]
[1743384010704,2.88394524,599.78,598.41,0.33421901]
[1743384010906,0.33346116,599.77,598.41,0.33421901]
[1743384011105,1.51132971,599.77,598.41,0.33421901]
[1743384011307,0.33346672,599.76,598.41,0.33421901]
[1743384011703,6.53502484,599.76,598.41,0.33421901]
[1743384011908,5.44871505,599.75,598.41,0.33421901]
[1743384012109,3.81812844,599.74,598.41,0.33421901]
[1743384012310,2.38342968,599.73,598.41,0.33421901]
[1743384012710,5.44871505,599.73,598.41,0.33421901]
[1743384012910,3.81812844,599.72,598.41,0.33421901]
[1743384013106,2.38342968,599.71,598.41,0.33421901]
[1743384013426,2.09449719,599.71,598.41,0.33421901]
[1743384013742,7.80004245,599.71,598.41,0.33421901]
[1743384013937,2.38513047,599.7,598.41,0.33421901]
[1743384014142,1.46850183,599.69,598.41,0.33421901]
[1743384014341,2.38513047,599.68,598.41,0.33421901]
[1743384014534,1.46850183,599.67,598.41,0.33421901]
[1743384014735,6.19731362,599.67,598.41,0.33421901]
[1743384014941,7.79336252,599.66,598.41,0.33421901]
[1743384015130,2.382746,599.65,598.41,0.33421901]
[1743384016038,3.56106454,599.65,598.41,0.33421901]
[1743384016244,2.382746,599.64,598.41,0.33421901]
[1743384016440,1.46686769,599.64,598.41,0.33421901]
[1743384016643,4.72925822,599.73,598.41,0.33421901]
[1743384016845,6.1942649,599.72,598.41,0.33421901]
[1743384017146,9.75840712,599.71,598.41,0.33421901]
[1743384017441,7.37258344,599.7,598.41,0.33421901]
[1743384017738,6.1942649,599.69,598.41,0.33421901]
[1743384018044,6.1942649,599.68,598.41,0.33421901]
[1743384018242,6.1942649,599.67,598.41,0.33421901]
[1743384018540,6.1942649,599.66,598.41,0.33421901]
[1743384018745,6.1942649,599.65,598.41,0.33421901]
[1743384019038,8.07957457,599.64,598.41,0.33421901]
[1743384019242,4.72925822,599.63,598.41,0.33421901]
[1743384019447,0.91562917,599.62,598.41,0.33421901]
[1743384019640,6.19372901,599.62,598.41,0.33421901]
[1743384019837,7.37204755,599.61,598.41,0.33421901]
[1743384020040,4.72925822,599.6,598.41,0.33421901]
[1743384020242,4.72925822,599.59,598.41,0.33421901]
[1743384020543,2.38208038,599.58,598.41,0.33421901]
[1743384020942,1.17831854,599.57,598.41,0.33421901]
[1743384021147,3.56039892,599.57,598.41,0.33421901]
[1743384021339,1.46686769,599.56,598.41,0.33421901]
[1743384021536,3.16031854,599.57,598.41,0.33421901]
[1743384021739,1.982,599.57,598.41,0.33421901]
[1743384039127,1.982,599.57,598.52,2.5510302]
[1743384039328,1.982,599.57,598.54,0.33414642]
[1743384043332,1.982,599.57,598.64,2.5510302]
[1743384043632,1.982,599.57,598.66,0.33407944]
[1743384082762,1.982,599.57,598.98,2.5510302]
[1743384083163,1.982,599.57,598.99,0.33389539]
[1743384083559,0.36151465,599.57,598.99,0.33389539]
[1743384083756,6.66284861,600.73,599.08,2.5510302]
[1743384083956,0.33293935,600.71,599.09,0.33383965]